[Event "Israeli Team U18-ch 2022"]
[Site "Be'er Ya'akov"]
[Date "2022.08.14"]
[Round "2.14"]
[White "Sherman, Reem"]
[Black "Mond, Omri"]
[Result "1-0"]
[ECO "C24"]
[WhiteElo "2071"]
[BlackElo "1599"]
[Annotator "NA RC"]
[PlyCount "225"]
[EventDate "2022.08.14"]
[EventCountry "ISR"]
[SourceTitle "playchess.com"]
[Source "ChessBase"]
[SourceQuality "1"]
[TimeControl "3000+10"]

1. e4 {[%emt 0:00:15]} e5 {[%emt 0:00:01]} 2. Bc4 {[%emt 0:00:13]} Nf6 {[%emt 0:00:06]} 3. d3 {[%emt 0:00:04]} c6 {[%emt 0:00:18]} 4. Nf3 {[%emt 0:00:07]} d5 {[%emt 0:00:08]} 5. Bb3 {[%emt 0:00:04]} Nbd7 {[%emt 0:00:59]} 6. exd5 {[%emt 0:00:30]} cxd5 {[%emt 0:00:02]} 7. Nc3 {[%emt 0:01:12]} Bb4 {[%emt 0:01:04]} 8. Bd2 {[%emt 0:01:25]} d4 {[%emt 0:05:40]} 9. Ne2 {[%emt 0:00:32]} Bxd2+ $11 {[%emt 0:01:17]} 10. Qxd2 {[%emt 0:00:12]} Qe7 {[%emt 0:00:44]} 11. O-O {[%emt 0:01:14]} O-O {[%emt 0:01:15]} 12. Rfe1 {[%emt 0:00:32]} Qc5 {[%emt 0:01:27]} 13. Ng3 {[%emt 0:01:20]} a5 {[%emt 0:02:09]} 14. a4 {[%emt 0:04:59]} Re8 {[%emt 0:07:03]} 15. Ng5 {[%emt 0:40:01]} Nd5 {[%emt 0:02:31]} 16. N5e4 {[%emt 0:00:00]} Qc6 {[%emt 0:00:53]} 17. Nf5 {[%emt 0:00:00]} N7f6 {[%emt 0:05:07]} 18. Qg5 {[%emt 0:00:00]} Bxf5 {[%emt 0:01:22]} 19. Qxf5 {[%emt 0:00:00]} h6 {[%emt 0:06:00]} 20. g3 {[%emt 0:00:00]} Rad8 {[%emt 0:01:32]} 21. Nd2 {[%emt 0:00:00]} g6 {[%emt 0:07:20]} 22. Qf3 {[%emt 0:00:00]} Nb6 {[%emt 0:01:05]} 23. Ne4 {[%emt 0:00:00]} Rd6 {[%emt 0:01:14]} 24. Re2 {[%emt 0:00:00]} Re7 {[%emt 0:00:48]} 25. Qg2 {[%emt 0:00:00]} Nxe4 {[%emt 0:04:15]} 26. Rxe4 {[%emt 0:00:00]} Nd7 {[%emt 0:00:00]} 27. Rae1 {[%emt 0:00:00]} Kg7 {[%emt 0:00:00]} 28. f4 {[%emt 0:00:00]} Qc5 {[%emt 0:00:00]} 29. fxe5 {[%emt 0:00:00]} Rxe5 {[%emt 0:00:07]} 30. Rxe5 {[%emt 0:00:00]} Nxe5 {[%emt 0:00:01]} 31. Qxb7 {[%emt 0:00:00]} Rf6 {[%emt 0:00:05]} 32. Rf1 {[%emt 0:00:00]} Rxf1+ {[%emt 0:00:32]} 33. Kxf1 {[%emt 0:00:00]} Qd6 {[%emt 0:00:10]} 34. Qe4 {[%emt 0:00:00]} Qf6+ {[%emt 0:00:17]} 35. Kg2 {[%emt 0:00:00]} Qg5 {[%emt 0:00:10]} 36. Qxd4 {[%emt 0:00:00]} Qd2+ {[%emt 0:00:01]} 37. Qf2 {[%emt 0:00:00]} Qb4 {[%emt 0:00:17]} 38. Qf4 {[%emt 0:00:08]} Qb7+ {[%emt 0:00:30]} 39. Qe4 {[%emt 0:00:05]} Qc7 {[%emt 0:00:00]} 40. h3 {[%emt 0:00:18]} h5 {[%emt 0:00:00]} 41. Qd5 {[%emt 0:00:32]} Qe7 {[%emt 0:00:16]} 42. Qxa5 {[%emt 0:00:57]} Nxd3 {[%emt 0:00:13]} 43. Qc3+ {[%emt 0:01:17]} Ne5 {[%emt 0:00:01]} 44. Bd5 {[%emt 0:00:44]} Qd6 {[%emt 0:00:06]} 45. Qd4 {[%emt 0:00:11]} Kh7 {[%emt 0:00:21]} 46. c4 {[%emt 0:00:15]} Nd7 {[%emt 0:00:10]} 47. Qf4 {[%emt 0:00:18]} Ne5 {[%emt 0:00:11]} 48. Bxf7 {[%emt 0:00:14]} Qb8 {[%emt 0:00:22]} 49. b3 {[%emt 0:00:20]} Qf8 {[%emt 0:00:00]} 50. Qxe5 {[%emt 0:00:10]} Qxf7 {[%emt 0:00:00]} 51. Qd5 {[%emt 0:00:04]} Qe7 {[%emt 0:00:02]} 52. Qd3 {[%emt 0:00:03]} Qb7+ {[%emt 0:00:02]} 53. Qf3 {[%emt 0:00:01]} Qb4 {[%emt 0:00:05]} 54. Qd3 {[%emt 0:00:15]} Qb7+ {[%emt 0:00:06]} 55. Kh2 {[%emt 0:00:02]} Qb6 {[%emt 0:00:10]} 56. Qf3 {[%emt 0:00:04]} Qb4 {[%emt 0:00:06]} 57. Qe3 {[%emt 0:00:07]} Qa3 {[%emt 0:00:14]} 58. h4 {[%emt 0:00:17]} Qb2+ {[%emt 0:00:06]} 59. Kh3 {[%emt 0:00:01]} Qf6 {[%emt 0:00:12]} 60. c5 {[%emt 0:00:04]} Qf5+ {[%emt 0:00:02]} 61. Kg2 {[%emt 0:00:08]} Qc2+ {[%emt 0:00:08]} 62. Kh1 {[%emt 0:00:18]} Qb1+ {[%emt 0:00:12]} 63. Kg2 {[%emt 0:00:24]} Qc2+ {[%emt 0:00:02]} 64. Kf3 {[%emt 0:00:09]} Qf5+ {[%emt 0:00:46]} 65. Ke2 {[%emt 0:00:02]} Qc2+ {[%emt 0:00:02]} 66. Ke1 {[%emt 0:00:01]} Qb1+ {[%emt 0:00:04]} 67. Kf2 {[%emt 0:00:24]} Qc2+ {[%emt 0:00:03]} 68. Kg1 {[%emt 0:00:01]} Qb1+ {[%emt 0:00:08]} 69. Kg2 {[%emt 0:00:22]} Qc2+ {[%emt 0:00:06]} 70. Kf3 {[%emt 0:00:21]} Qf5+ {[%emt 0:00:01]} 71. Qf4 {[%emt 0:00:10]} Qxc5 {[%emt 0:00:38]} 72. Qf7+ {[%emt 0:00:22]} Kh6 {[%emt 0:00:06]} 73. Qf4+ {[%emt 0:00:01]} Kh7 {[%emt 0:00:01]} 74. Qc4 {[%emt 0:00:01]} Qf5+ {[%emt 0:00:04]} 75. Kg2 {[%emt 0:00:03]} Qd7 {[%emt 0:00:20]} 76. Qc3 {[%emt 0:00:30]} Qd5+ {[%emt 0:00:07]} 77. Kf2 {[%emt 0:00:02]} Qf5+ {[%emt 0:00:11]} 78. Ke3 {[%emt 0:00:08]} Qe6+ {[%emt 0:00:07]} 79. Kd4 {[%emt 0:00:02]} Qf6+ {[%emt 0:00:28]} 80. Kc4 {[%emt 0:00:02]} Qc6+ {[%emt 0:00:06]} 81. Kb4 {[%emt 0:00:02]} Qd6+ {[%emt 0:00:08]} 82. Ka5 {[%emt 0:00:11]} Qd5+ {[%emt 0:00:09]} 83. Kb6 {[%emt 0:00:04]} Qe6+ {[%emt 0:00:15]} 84. Kb7 {[%emt 0:00:05]} Qe4+ {[%emt 0:00:03]} 85. Kb8 {[%emt 0:00:13]} Qe6 {[%emt 0:00:27]} 86. a5 {[%emt 0:00:12]} Qe8+ {[%emt 0:00:18]} 87. Qc8 {[%emt 0:00:04]} Qe1 {[%emt 0:00:05]} 88. Qc7+ {[%emt 0:00:05]} Kh6 {[%emt 0:00:04]} 89. a6 {[%emt 0:00:40]} Qb4+ {[%emt 0:00:15]} 90. Qb7 {[%emt 0:00:34]} Qd6+ {[%emt 0:00:12]} 91. Kc8 {[%emt 0:00:02]} Qf8+ {[%emt 0:00:07]} 92. Kc7 {[%emt 0:00:02]} Qe7+ {[%emt 0:00:10]} 93. Kc6 {[%emt 0:00:17]} Qe4+ {[%emt 0:00:07]} 94. Kc5 {[%emt 0:00:09]} Qe3+ {[%emt 0:00:04]} 95. Kb4 {[%emt 0:00:03]} Qd4+ {[%emt 0:00:04]} 96. Ka5 {[%emt 0:00:06]} Qa1+ {[%emt 0:00:07]} 97. Kb5 {[%emt 0:00:11]} Qe5+ {[%emt 0:00:02]} 98. Kc4 {[%emt 0:00:08]} Qe2+ {[%emt 0:00:08]} 99. Kb4 {[%emt 0:00:03]} Qd2+ {[%emt 0:00:07]} 100. Kb5 {[%emt 0:00:08]} Qd3+ {[%emt 0:00:02]} 101. Ka4 {[%emt 0:00:04]} Qd4+ {[%emt 0:00:19]} 102. b4 {[%emt 0:00:01]} Qa1+ {[%emt 0:00:11]} 103. Kb5 {[%emt 0:00:01]} Qe5+ {[%emt 0:00:01]} 104. Kb6 {[%emt 0:00:10]} Qd4+ {[%emt 0:00:18]} 105. Kc6 {[%emt 0:00:34]} Qe4+ {[%emt 0:00:11]} 106. Kd7 {[%emt 0:00:08]} Qd4+ {[%emt 0:00:09]} 107. Ke6 {[%emt 0:00:15]} Qc4+ {[%emt 0:00:13]} 108. Ke7 {[%emt 0:00:06]} Qe2+ {[%emt 0:00:03]} 109. Kf8 {[%emt 0:00:08]} Qe5 {[%emt 0:00:48]} 110. b5 {[%emt 0:00:35]} Qc5+ {[%emt 0:00:12]} 111. Kg8 {[%emt 0:00:19]} Qc4+ {[%emt 0:00:07]} 112. Qf7 {[%emt 0:00:03]} Qe6 {[%emt 0:00:15]} 113. a7 {[%emt 0:00:39]} 1-0

[Event "Israeli Team U18-ch 2022"]
[Site "Be'er Ya'akov"]
[Date "2022.08.14"]
[Round "2.15"]
[White "Gilor, Amit"]
[Black "Friedland, Eldar"]
[Result "0-1"]
[ECO "B06"]
[WhiteElo "1573"]
[BlackElo "1990"]
[Annotator "NA RC"]
[PlyCount "90"]
[EventDate "2022.08.14"]
[EventCountry "ISR"]
[SourceTitle "playchess.com"]
[Source "ChessBase"]
[SourceQuality "1"]
[TimeControl "3000+10"]

1. e4 {[%emt 0:00:02]} c5 {[%emt 0:00:14]} 2. c3 {[%emt 0:00:03]} d5 {[%emt 0:00:21]} 3. exd5 {[%emt 0:00:03]} Qxd5 {[%emt 0:00:15]} 4. d4 {[%emt 0:00:05]} g6 {[%emt 0:00:17]} 5. Nf3 {[%emt 0:00:10]} Bg7 {[%emt 0:00:22]} 6. Be3 {[%emt 0:00:29]} Nf6 {[%emt 0:00:53]} 7. dxc5 {[%emt 0:01:32]} Qxd1+ {[%emt 0:00:19]} 8. Kxd1 {[%emt 0:00:01]} Ng4 {[%emt 0:00:24]} 9. Bd3 {[%emt 0:01:55]} O-O {[%emt 0:02:05]} 10. Kc2 {[%emt 0:01:02]} Nxe3+ {[%emt 0:03:19]} 11. fxe3 {[%emt 0:00:02]} a5 {[%emt 0:01:29]} 12. Nbd2 {[%emt 0:01:47]} Na6 {[%emt 0:02:44]} 13. Bxa6 {[%emt 0:02:33]} Rxa6 {[%emt 0:00:26]} 14. Nd4 {[%emt 0:00:08]} Rd8 {[%emt 0:01:44]} 15. b3 {[%emt 0:04:02]} e5 {[%emt 0:04:31]} 16. N4f3 {[%emt 0:00:12]} Rc6 {[%emt 0:00:51]} 17. Nc4 {[%emt 0:01:00]} Bf5+ {[%emt 0:00:55]} 18. Kb2 {[%emt 0:00:07]} Rxc5 {[%emt 0:00:26]} 19. Rhd1 {[%emt 0:00:08]} Rcd5 {[%emt 0:07:47]} 20. Rxd5 {[%emt 0:04:38]} Rxd5 {[%emt 0:00:06]} 21. Re1 {[%emt 0:00:07]} Be4 {[%emt 0:00:24]} 22. Ng5 {[%emt 0:02:53]} Bd3 {[%emt 0:02:27]} 23. e4 {[%emt 0:02:29]} Rc5 {[%emt 0:00:57]} 24. Nd6 {[%emt 0:03:21]} Bh6 {[%emt 0:02:24]} 25. Rd1 {[%emt 0:00:42]} Be2 {[%emt 0:02:09]} 26. Re1 {[%emt 0:00:09]} Bxg5 {[%emt 0:01:06]} 27. Rxe2 {[%emt 0:00:06]} Be7 {[%emt 0:01:18]} 28. Rd2 {[%emt 0:01:15]} Bxd6 {[%emt 0:09:43]} 29. Rxd6 {[%emt 0:00:01]} a4 {[%emt 0:02:16]} 30. c4 {[%emt 0:08:25]} Rc7 {[%emt 0:01:35]} 31. Rd5 {[%emt 0:00:25]} f6 {[%emt 0:00:11]} 32. Kc3 {[%emt 0:00:17]} axb3 {[%emt 0:00:02]} 33. axb3 {[%emt 0:00:01]} Kf7 {[%emt 0:00:03]} 34. c5 {[%emt 0:00:57]} Ke6 {[%emt 0:00:37]} 35. Kc4 {[%emt 0:00:34]} f5 {[%emt 0:00:35]} 36. Rd6+ {[%emt 0:00:16]} Ke7 {[%emt 0:00:03]} 37. exf5 {[%emt 0:02:10]} gxf5 {[%emt 0:00:01]} 38. Kd5 {[%emt 0:00:12]} e4 {[%emt 0:00:46]} 39. g4 {[%emt 0:03:02]} Rd7 {[%emt 0:00:18]} 40. gxf5 {[%emt 0:00:19]} e3 {[%emt 0:00:08]} 41. f6+ {[%emt 0:00:14]} Ke8 {[%emt 0:00:17]} 42. f7+ {[%emt 0:06:21]} Rxf7 {[%emt 0:00:02]} 43. c6 {[%emt 0:01:48]} bxc6+ {[%emt 0:00:05]} 44. Rxc6 {[%emt 0:00:24]} e2 {[%emt 0:00:11]} 45. Kd6 {[%emt 0:00:34]} Rf6+ {[%emt 0:00:03]} 0-1

[Event "Israeli Team U18-ch 2022"]
[Site "Be'er Ya'akov"]
[Date "2022.08.14"]
[Round "2.16"]
[White "Ostrovsky Berman, Noam"]
[Black "Blonder, Daniel"]
[Result "0-1"]
[ECO "B07"]
[WhiteElo "1778"]
[BlackElo "1633"]
[Annotator "NA RC"]
[PlyCount "86"]
[EventDate "2022.08.14"]
[EventCountry "ISR"]
[SourceTitle "playchess.com"]
[Source "ChessBase"]
[SourceQuality "1"]
[TimeControl "3000+10"]

1. e4 {[%emt 0:00:02]} d6 {[%emt 0:00:03]} 2. d4 {[%emt 0:00:04]} Nf6 {[%emt 0:00:01]} 3. Nc3 {[%emt 0:00:06]} g6 {[%emt 0:00:03]} 4. f3 {[%emt 0:00:06]} Bg7 {[%emt 0:00:03]} 5. Be3 {[%emt 0:00:04]} a6 {[%emt 0:00:07]} 6. Qd2 {[%emt 0:00:10]} b5 {[%emt 0:00:07]} 7. Bh6 {[%emt 0:01:47]} Bxh6 {[%emt 0:02:25]} 8. Qxh6 {[%emt 0:00:03]} e5 {[%emt 0:01:52]} 9. O-O-O {[%emt 0:02:25]} exd4 {[%emt 0:02:19]} 10. Rxd4 {[%emt 0:01:59]} Nc6 {[%emt 0:00:29]} 11. Rd1 {[%emt 0:00:22]} Bb7 {[%emt 0:01:25]} 12. g4 {[%emt 0:07:14]} Qe7 {[%emt 0:06:48]} 13. g5 {[%emt 0:13:31]} Ng8 {[%emt 0:04:24]} 14. Qh4 {[%emt 0:01:41]} O-O-O {[%emt 0:01:28]} 15. Nd5 {[%emt 0:02:11]} Qe8 {[%emt 0:02:02]} 16. Qf2 {[%emt 0:01:34]} Kb8 {[%emt 0:04:15]} 17. h4 {[%emt 0:00:11]} f6 {[%emt 0:03:51]} 18. Kb1 {[%emt 0:01:30]} fxg5 {[%emt 0:00:54]} 19. hxg5 {[%emt 0:00:07]} Nge7 {[%emt 0:00:47]} 20. Nf6 {[%emt 0:06:46]} Qf7 {[%emt 0:00:15]} 21. Rh6 {[%emt 0:07:20]} Ng8 {[%emt 0:01:36]} 22. Nxg8 {[%emt 0:00:03]} Rdxg8 {[%emt 0:00:23]} 23. Qe3 {[%emt 0:00:02]} Ne5 {[%emt 0:01:30]} 24. Bd3 {[%emt 0:00:27]} Qe7 {[%emt 0:00:57]} 25. c3 {[%emt 0:01:13]} Nf7 {[%emt 0:00:21]} 26. Rh3 {[%emt 0:00:58]} Nxg5 {[%emt 0:00:15]} 27. Rg3 {[%emt 0:00:03]} Ne6 {[%emt 0:00:25]} 28. Ne2 {[%emt 0:00:04]} Rf8 {[%emt 0:00:28]} 29. Rh1 {[%emt 0:00:14]} Rf7 {[%emt 0:00:21]} 30. Rxg6 {[%emt 0:00:25]} Rhf8 {[%emt 0:00:37]} 31. Rg3 {[%emt 0:00:04]} Nc5 {[%emt 0:00:49]} 32. Bc2 {[%emt 0:00:12]} d5 {[%emt 0:02:03]} 33. e5 {[%emt 0:00:35]} Ne6 {[%emt 0:01:56]} 34. Rgh3 {[%emt 0:00:43]} d4 {[%emt 0:00:49]} 35. Nxd4 {[%emt 0:00:27]} Nxd4 {[%emt 0:00:09]} 36. cxd4 {[%emt 0:00:34]} Rxf3 {[%emt 0:00:18]} 37. Rxf3 {[%emt 0:00:16]} Rxf3 {[%emt 0:00:14]} 38. Qd2 {[%emt 0:00:24]} Qf7 {[%emt 0:00:11]} 39. Bxh7 {[%emt 0:00:19]} Rf2 {[%emt 0:00:10]} 40. Qd3 {[%emt 0:00:13]} Bxh1 {[%emt 0:00:17]} 41. Bg6 {[%emt 0:00:10]} Rf1+ {[%emt 0:00:36]} 42. Kc2 {[%emt 0:00:05]} Qf2+ {[%emt 0:00:51]} 43. Kc3 {[%emt 0:00:19]} Qe1+ {[%emt 0:00:26]} 0-1

[Event "Israeli Team U18-ch 2022"]
[Site "Be'er Ya'akov"]
[Date "2022.08.14"]
[Round "2.18"]
[White "Umanskiy, Stanislav"]
[Black "Neiman, Maks"]
[Result "0-1"]
[ECO "D02"]
[WhiteElo "1642"]
[BlackElo "2110"]
[Annotator "NA RC"]
[PlyCount "60"]
[EventDate "2022.08.14"]
[EventCountry "ISR"]
[SourceTitle "playchess.com"]
[Source "ChessBase"]
[SourceQuality "1"]
[TimeControl "3000+10"]

1. d4 {[%emt 0:00:03]} d5 {[%emt 0:00:09]} 2. Nf3 {[%emt 0:00:06]} Nf6 {[%emt 0:00:11]} 3. Bf4 {[%emt 0:00:13]} c5 {[%emt 0:00:25]} 4. c3 {[%emt 0:00:55]} Nc6 {[%emt 0:00:06]} 5. e3 {[%emt 0:00:20]} Qb6 {[%emt 0:00:16]} 6. Qc2 {[%emt 0:00:47]} g6 {[%emt 0:00:43]} 7. dxc5 {[%emt 0:02:26]} Qxc5 {[%emt 0:00:44]} 8. Nbd2 {[%emt 0:00:37]} Bg7 {[%emt 0:01:07]} 9. h3 {[%emt 0:02:09]} O-O {[%emt 0:00:51]} 10. Be2 {[%emt 0:01:03]} Re8 {[%emt 0:01:52]} 11. O-O {[%emt 0:02:22]} e5 {[%emt 0:00:48]} 12. Bh2 {[%emt 0:00:16]} a5 {[%emt 0:06:21]} 13. a4 {[%emt 0:01:17]} Bf5 {[%emt 0:01:25]} 14. Qb3 {[%emt 0:01:16]} d4 {[%emt 0:04:18]} 15. cxd4 {[%emt 0:02:13]} exd4 {[%emt 0:00:08]} 16. Rac1 {[%emt 0:01:25]} Qe7 {[%emt 0:02:22]} 17. Bb5 {[%emt 0:07:53]} dxe3 {[%emt 0:01:37]} 18. Qxe3 {[%emt 0:04:44]} Qxe3 {[%emt 0:01:11]} 19. fxe3 {[%emt 0:00:06]} Rxe3 {[%emt 0:03:44]} 20. Bxc6 {[%emt 0:00:40]} bxc6 {[%emt 0:00:10]} 21. Rxc6 {[%emt 0:01:28]} Ne4 {[%emt 0:05:20]} 22. Nxe4 {[%emt 0:02:16]} Rxe4 {[%emt 0:05:40]} 23. g4 {[%emt 0:03:28]} Be6 {[%emt 0:01:02]} 24. Ng5 {[%emt 0:00:36]} Bd4+ {[%emt 0:01:09]} 25. Kh1 {[%emt 0:00:51]} Bd5 {[%emt 0:06:17]} 26. Rd6 {[%emt 0:00:14]} Re1+ {[%emt 0:00:14]} 27. Rxd5 {[%emt 0:00:30]} Rxf1+ {[%emt 0:00:04]} 28. Kg2 {[%emt 0:00:23]} Rf2+ {[%emt 0:00:19]} 29. Kg3 {[%emt 0:07:28]} Rd2 {[%emt 0:01:44]} 30. Nf3 {[%emt 0:01:09]} Bf2+ {[%emt 0:00:07]} 0-1

[Event "Israeli Team U18-ch 2022"]
[Site "Be'er Ya'akov"]
[Date "2022.08.15"]
[Round "3.1"]
[White "Aizenberg, Benny"]
[Black "Rozen, Eytan"]
[Result "1/2-1/2"]
[ECO "B77"]
[WhiteElo "2361"]
[BlackElo "2465"]
[Annotator "TA"]
[PlyCount "79"]
[EventDate "2022.08.14"]
[EventCountry "ISR"]
[SourceTitle "playchess.com"]
[Source "ChessBase"]
[SourceQuality "1"]
[TimeControl "3000+10"]

{[%evp 22,79,45,10,10,10,22,16,11,10,29,0,0,0,0,12,32,17,14,15,32,0,0,0,0,0,0,0,0,0,0,0,0,0,0,0,0,0,0,0,0,0,0,0,0,0,0,0,0,0,0,0,0,0,0,0,0,0,0,0]} 1. e4 {[%emt 0:00:01]} c5 {[%emt 0:00:04]} 2. Nf3 {[%emt 0:00:03]} Nc6 {[%emt 0:00:05]} 3. d4 {[%emt 0:00:03]} cxd4 {[%emt 0:00:04]} 4. Nxd4 {[%emt 0:00:02]} g6 {[%emt 0:00:05]} 5. Be3 {[%emt 0:00:05]} Bg7 {[%emt 0:00:21]} 6. Nc3 {[%emt 0:00:05]} Nf6 {[%emt 0:00:04]} 7. Bc4 {[%emt 0:00:03]} O-O {[%emt 0:00:18]} 8. Bb3 {[%emt 0:00:03]} d6 {[%emt 0:00:06]} 9. f3 {[%emt 0:00:02]} Bd7 {[%emt 0:00:08]} 10. Qd2 {[%emt 0:00:05]} Nxd4 {[%emt 0:00:09]} 11. Bxd4 {[%emt 0:00:03]} b5 {[%emt 0:00:07]} 12. a4 {[%emt 0:00:02]} b4 {[%emt 0:02:38] 12...b4 has lost popularity. B77: Sicilian Dragon: Yugoslav Attack, 9 Bc4 sidelines.} 13. Nd5 {[%emt 0:00:05]} Nxd5 $1 {[%emt 0:00:25]} 14. Bxg7 {[%emt 0:00:14]} Kxg7 {[%emt 0:00:06]} 15. exd5 {[%emt 0:01:05]} Qa5 {[%emt 0:01:50]} 16. O-O {[%emt 0:01:35]} e5 {[%emt 0:01:57]} 17. dxe6 $1 {[%emt 0:00:27]} Qc5+ {[%emt 0:01:14]} 18. Kh1 {[%emt 0:49:07]} Bxe6 {[%emt 0:01:18]} 19. Bxe6 {[%emt 0:00:00]} fxe6 {[%emt 0:00:03]} 20. Rfe1 {[%emt 0:00:00]} e5 {[%emt 0:00:43] [#]} 21. Rac1 $146 {[%emt 0:00:00]} ({Predecessor:} 21. Rad1 Rac8 22. h3 Rf4 23. Rc1 Qd4 24. Qe2 Qc4 25. Qf2 Qd4 26. Qf1 Qc4 27. Qg1 {½-½ (58) Mazur,S (2426)-Bedouin,X (2338) Metz 2014}) 21... Rf4 {[%emt 0:03:23] The position is equal.} 22. c4 {[%emt 0:00:00]} Raf8 {[%emt 0:06:55]} 23. b3 {[%emt 0:00:00]} Rd4 {[%emt 0:01:13]} 24. Qc2 {[%emt 0:00:00]} Rff4 {[%emt 0:01:21]} 25. Rcd1 {[%emt 0:00:00]} a5 {[%emt 0:01:01]} 26. h3 {[%emt 0:00:00]} h6 {[%emt 0:03:00]} 27. Rxd4 {[%emt 0:00:00]} Rxd4 {[%emt 0:00:36]} 28. Re4 {[%emt 0:00:00]} Rxe4 {[%emt 0:03:01]} 29. Qxe4 $11 {[%emt 0:00:00][%mdl 4096] Endgame KQ-KQ} g5 {[%emt 0:01:47]} 30. Qf5 {[%emt 0:00:00]} Qd4 {[%emt 0:01:22]} 31. Qd7+ {[%emt 0:00:00]} Kg6 {[%emt 0:00:13]} 32. Qe8+ {[%emt 0:00:00]} Kg7 {[%emt 0:00:08]} 33. Qe7+ {[%emt 0:00:00]} Kg6 {[%emt 0:00:08]} 34. Qe6+ {[%emt 0:00:00]} Kg7 {[%emt 0:01:10]} 35. Qd7+ {[%emt 0:00:00]} Kg6 {[%emt 0:00:07]} 36. Qd8 {[%emt 0:00:00]} Qd2 {[%emt 0:02:11]} 37. Qe8+ {[%emt 0:00:00]} Kg7 {[%emt 0:01:15]} 38. Qe7+ {[%emt 0:00:00]} Kg6 {[%emt 0:00:08]} 39. Qe6+ {[%emt 0:00:00]} Kg7 {[%emt 0:00:14]} 40. Qe7+ {[%emt 0:00:00] An interesting draw.  Weighted Error Value: White=0.03 (flawless) /Black=0.02 (flawless)} 1/2-1/2

[Event "Israeli Team U18-ch 2022"]
[Site "Be'er Ya'akov"]
[Date "2022.08.15"]
[Round "3.2"]
[White "Milikow, Yoav"]
[Black "Sherman, Reem"]
[Result "1-0"]
[ECO "E68"]
[WhiteElo "2452"]
[BlackElo "2071"]
[Annotator "TA"]
[PlyCount "109"]
[EventDate "2022.08.14"]
[EventCountry "ISR"]
[SourceTitle "playchess.com"]
[Source "ChessBase"]
[SourceQuality "1"]
[TimeControl "3000+10"]

{[%evp 23,109,40,45,18,29,18,33,14,39,0,0,0,0,0,8,-1,20,0,0,-30,14,6,18,-12,25,0,0,0,0,0,10,-19,-27,-14,7,0,7,0,54,25,40,18,32,32,30,46,23,30,32,0,0,0,0,0,77,42,280,280,262,258,236,212,212,212,212,126,126,125,125,14,29979,29980,29980,29981,29988,29969,6195,6079,5377,5318,1662,1166,1166,1081,29989,29990,29990,29991]} 1. d4 {[%emt 0:00:03]} Nf6 {[%emt 0:00:05]} 2. c4 {[%emt 0:00:03]} g6 {[%emt 0:00:07]} 3. g3 {[%emt 0:00:07]} Bg7 {[%emt 0:00:15]} 4. Bg2 {[%emt 0:00:05]} O-O {[%emt 0:00:16]} 5. Nc3 {[%emt 0:00:10]} d6 {[%emt 0:00:25]} 6. Nf3 {[%emt 0:00:08]} Nbd7 {[%emt 0:00:32]} 7. O-O {[%emt 0:00:12]} e5 {[%emt 0:00:28]} 8. e4 {[%emt 0:00:30]} a6 {[%emt 0:00:43]} 9. Re1 {[%emt 0:02:08]} exd4 {[%emt 0:01:23]} 10. Nxd4 {[%emt 0:00:07]} Ne5 {[%emt 0:00:19]} 11. b3 {[%emt 0:02:10]} c5 {[%emt 0:02:20]} 12. Nc2 {[%emt 0:00:49]} Rb8 {[%emt 0:00:25]} 13. h3 {[%emt 0:10:02] E68: King's Indian: Fianchetto: 6...Nbd7 7 0-0 e5 8 e4.} Nc6 {[%emt 0:07:26] was the old line (13...b5).} 14. Bb2 {[%emt 0:08:07]} b5 {[%emt 0:03:58]} 15. cxb5 {[%emt 0:04:23] White is slightly better.} axb5 {[%emt 0:00:17]} 16. Nd5 {[%emt 0:01:12] [#]} Nxd5 $146 {[%emt 0:01:43]} ({Predecessor:} 16... Bb7 17. Rb1 Re8 18. Qd2 b4 19. a3 bxa3 20. Nxa3 Ba6 21. Nc4 Nxd5 22. exd5 Rxe1+ 23. Rxe1 {0-1 (48) Sedlacek,P (2231)-Tibensky,R (2396) Slovakia 2014}) 17. Bxg7 {[%emt 0:00:06]} Kxg7 {[%emt 0:00:13]} 18. Qxd5 {[%emt 0:00:37]} Bb7 {[%emt 0:01:00][%cal Oc6d4]} 19. Qd2 {[%emt 0:00:32] Inhibits Nd4.} Qe7 {[%emt 0:05:54]} 20. Rad1 {[%emt 0:00:10]} Rfd8 {[%emt 0:00:26]} 21. Re3 {[%emt 0:01:56]} Rd7 {[%emt 0:02:51]} 22. Qc3+ {[%emt 0:01:41]} f6 {[%emt 0:01:08]} 23. Qd2 {[%emt 0:00:18]} Qf7 {[%emt 0:02:32]} 24. f4 {[%emt 0:00:58][%cal Oe4e5]} Rbd8 $1 {[%emt 0:02:00]} 25. Rd3 {[%emt 0:01:15]} b4 {[%emt 0:01:59]} 26. Qc1 {[%emt 0:01:08]} Qe6 {[%emt 0:03:52]} 27. Qb2 {[%emt 0:00:51]} Ne7 {[%emt 0:01:12]} 28. Re1 {[%emt 0:00:29]} h6 {[%emt 0:01:21]} 29. h4 {[%emt 0:00:14]} (29. Ne3 {feels hotter.} d5 30. exd5 Nxd5 31. f5) 29... Kh7 {[%emt 0:00:39]} 30. Kh2 {[%emt 0:00:17]} Qf7 {[%emt 0:00:14]} ({Black should try} 30... f5 $11) 31. Ne3 $14 {[%emt 0:01:02]} h5 {[%emt 0:02:19]} 32. Qf2 {[%emt 0:01:37]} f5 {[%emt 0:03:06]} 33. exf5 {[%emt 0:00:24]} Nxf5 {[%emt 0:00:06]} 34. Nxf5 {[%emt 0:00:55]} Qxf5 {[%emt 0:00:03]} 35. Rde3 {[%emt 0:00:14] Strongly threatening Re7+.} Bxg2 $1 {[%emt 0:00:11]} 36. Re7+ {[%emt 0:00:54]} Rxe7 {[%emt 0:00:48]} 37. Rxe7+ {[%emt 0:00:01]} Kh6 {[%emt 0:01:03] ( -> ...Qh3+)} 38. Qxg2 $11 {[%emt 0:00:09][%mdl 4096] Endgame KQR-KQR} d5 {[%emt 0:00:08]} (38... Rd7 $11 {remains equal.} 39. Re2 Kh7) 39. Qd2 {[%emt 0:00:29]} (39. Re5 $5 {[%cal Re5f5]} Qf6 40. Rg5 $16 (40. Rxd5 Rxd5 41. Qxd5 Qb2+ 42. Qg2 Qb1 $14)) 39... c4 $2 {[%emt 0:01:00]} (39... Rd7 $14 40. Re5 Qf6) 40. bxc4 $18 {[%emt 0:00:33]} (40. Qxb4 Qc2+ 41. Kh3 Ra8 $11) 40... d4 {[%emt 0:00:46]} 41. Re5 $40 {[%emt 0:00:08][%mdl 128] White is out for blood.} (41. Qxb4 Qc2+ 42. Kg1 Qc3 $16) 41... Qf6 {[%emt 0:00:10]} 42. Qxb4 {[%emt 0:01:35]} d3 {[%emt 0:00:17] White must now prevent ...d2.} 43. Qd2 $1 {[%emt 0:00:30]} Kg7 {[%emt 0:00:23]} 44. Re3 {[%emt 0:02:17]} (44. c5 $18) 44... Qd4 $16 {[%emt 0:00:17] [#]} 45. f5 $1 {[%emt 0:00:27]} Rd7 {[%emt 0:00:42]} 46. Re6 {[%emt 0:00:23]} (46. c5 $16 {And now c6 would win.} Qxc5 47. Rxd3 Rxd3 48. Qxd3) 46... Qxc4 {[%emt 0:00:13][%mdl 8192]} (46... Rb7 $11 47. Re2 (47. fxg6 $2 Rb2 $19) (47. Rxg6+ Kf7 $11) 47... Qxc4) 47. Rxg6+ {[%emt 0:00:07]} Kf7 {[%emt 0:00:01] [#]} 48. Qh6 $1 {[%emt 0:00:30]} Ke7 {[%emt 0:00:13]} 49. Qg5+ {[%emt 0:01:06]} Kf8 {[%emt 0:00:16]} 50. Qf6+ {[%emt 0:00:08]} Qf7 {[%emt 0:00:02]} 51. Qh8+ {[%emt 0:00:11]} Ke7 {[%emt 0:00:01]} 52. Re6+ {[%emt 0:00:31]} Qxe6 {[%emt 0:00:02]} 53. fxe6 {[%emt 0:00:01][%cal Bf5e6,Be6d7][%mdl 32]} d2 {[%emt 0:00:01]} 54. exd7 {[%emt 0:00:12]} d1=Q {[%emt 0:00:05]} 55. Qe8+ {[%emt 0:04:08] Weighted Error Value: White=0.18 (very precise) /Black=0.51} 1-0